[Event "Titled Tuesday Blitz October 11 Late 2022"]
[White "Aarav Dengla"]
[Black "Averjanov, Alexey"]
[WhiteFideId "45059756"]
[BlackFideId "14109867"]
[WhiteElo "2257"]
[BlackElo "2673"]
[Result "1/2-1/2"]
[Round "01"]
[TimeControl "180+1"]
[Date "2022.10.12"]
[WhiteClock "0:00:12"]
[BlackClock "0:01:13"]

1. e4 {[%clk 0:02:47]}  c6 {[%clk 0:03:00]} 2. d4 {[%clk 0:02:46]}  d5 {[%clk 0:03:00]} 3. exd5 {[%clk 0:02:45]}  cxd5 {[%clk 0:03:01]} 4. Bd3 {[%clk 0:02:45]}  Nc6 {[%clk 0:03:01]} 5. c3 {[%clk 0:02:45]}  Qc7 {[%clk 0:03:01]} 6. h3 {[%clk 0:02:44]}  g6 {[%clk 0:03:01]} 7. Qc2 {[%clk 0:02:36]}  Nh6 {[%clk 0:02:57]} 8. Nf3 {[%clk 0:02:35]}  Bf5 {[%clk 0:02:57]} 9. O-O {[%clk 0:02:24]}  Bxd3 {[%clk 0:02:57]} 10. Qxd3 {[%clk 0:02:22]}  Nf5 {[%clk 0:02:58]} 11. Re1 {[%clk 0:02:17]}  Bg7 {[%clk 0:02:58]} 12. Nbd2 {[%clk 0:02:15]}  O-O {[%clk 0:02:59]} 13. Nf1 {[%clk 0:02:03]}  Rab8 {[%clk 0:02:59]} 14. Ne3 {[%clk 0:02:01]}  Nxe3 {[%clk 0:02:59]} 15. Bxe3 {[%clk 0:02:02]}  b5 {[%clk 0:02:59]} 16. Nd2 {[%clk 0:02:01]}  b4 {[%clk 0:02:57]} 17. Nb3 {[%clk 0:02:01]}  bxc3 {[%clk 0:02:57]} 18. bxc3 {[%clk 0:02:01]}  Na5 {[%clk 0:02:56]} 19. Nc5 {[%clk 0:01:59]}  Qc6 {[%clk 0:02:54]} 20. Bf4 {[%clk 0:01:58]}  Rbe8 {[%clk 0:02:52]} 21. Nb3 {[%clk 0:01:57]}  Nc4 {[%clk 0:02:50]} 22. Re2 {[%clk 0:01:56]}  e6 {[%clk 0:02:49]} 23. h4 {[%clk 0:01:44]}  e5 {[%clk 0:02:48]} 24. dxe5 {[%clk 0:01:40]}  Nxe5 {[%clk 0:02:49]} 25. Bxe5 {[%clk 0:01:34]}  Rxe5 {[%clk 0:02:49]} 26. Rxe5 {[%clk 0:01:29]}  Bxe5 {[%clk 0:02:50]} 27. Nd4 {[%clk 0:01:29]}  Qc5 {[%clk 0:02:51]} 28. Re1 {[%clk 0:01:25]}  Bf6 {[%clk 0:02:47]} 29. g3 {[%clk 0:01:08]}  Rc8 {[%clk 0:02:47]} 30. Re3 {[%clk 0:00:54]}  h5 {[%clk 0:02:44]} 31. Ne2 {[%clk 0:00:50]}  Kg7 {[%clk 0:02:42]} 32. Nf4 {[%clk 0:00:47]}  d4 {[%clk 0:02:42]} 33. cxd4 {[%clk 0:00:43]}  Bxd4 {[%clk 0:02:43]} 34. Re2 {[%clk 0:00:42]}  Rd8 {[%clk 0:02:41]} 35. Kg2 {[%clk 0:00:39]}  Rd6 {[%clk 0:02:38]} 36. Rc2 {[%clk 0:00:36]}  Qe5 {[%clk 0:02:36]} 37. Re2 {[%clk 0:00:33]}  Qf6 {[%clk 0:02:35]} 38. Qf3 {[%clk 0:00:32]}  Be5 {[%clk 0:02:33]} 39. Nh3 {[%clk 0:00:29]}  Qxf3+ {[%clk 0:02:31]} 40. Kxf3 {[%clk 0:00:30]}  Kf6 {[%clk 0:02:32]} 41. Ng5 {[%clk 0:00:29]}  Rd3+ {[%clk 0:02:29]} 42. Kg2 {[%clk 0:00:27]}  Bd4 {[%clk 0:02:29]} 43. Ne4+ {[%clk 0:00:26]}  Kg7 {[%clk 0:02:26]} 44. Ng5 {[%clk 0:00:26]}  Bf6 {[%clk 0:02:24]} 45. Ne4 {[%clk 0:00:25]}  Ra3 {[%clk 0:02:24]} 46. Nxf6 {[%clk 0:00:23]}  Kxf6 {[%clk 0:02:25]} 47. f3 {[%clk 0:00:23]}  Kf5 {[%clk 0:02:24]} 48. Kf2 {[%clk 0:00:23]}  a5 {[%clk 0:02:24]} 49. Rb2 {[%clk 0:00:23]}  a4 {[%clk 0:02:22]} 50. Re2 {[%clk 0:00:23]}  f6 {[%clk 0:02:22]} 51. Rb2 {[%clk 0:00:21]}  g5 {[%clk 0:02:18]} 52. hxg5 {[%clk 0:00:22]}  Kxg5 {[%clk 0:02:17]} 53. Rb5+ {[%clk 0:00:21]}  f5 {[%clk 0:02:17]} 54. Rb2 {[%clk 0:00:21]}  Rc3 {[%clk 0:02:17]} 55. Kg2 {[%clk 0:00:19]}  a3 {[%clk 0:02:16]} 56. Rd2 {[%clk 0:00:16]}  Rc5 {[%clk 0:02:16]} 57. Kh3 {[%clk 0:00:15]}  f4 {[%clk 0:02:13]} 58. gxf4+ {[%clk 0:00:13]}  Kxf4 {[%clk 0:02:14]} 59. Rd3 {[%clk 0:00:13]}  h4 {[%clk 0:01:34]} 60. Rxa3 {[%clk 0:00:10]}  Rc1 {[%clk 0:01:34]} 61. Ra4+ {[%clk 0:00:10]}  Kxf3 {[%clk 0:01:33]} 62. Kxh4 {[%clk 0:00:10]}  Ke3 {[%clk 0:01:30]} 63. Rb4 {[%clk 0:00:09]}  Kd3 {[%clk 0:01:28]} 64. a4 {[%clk 0:00:06]}  Kc3 {[%clk 0:01:28]} 65. Rf4 {[%clk 0:00:03]}  Ra1 {[%clk 0:01:28]} 66. Kg4 {[%clk 0:00:04]}  Kb3 {[%clk 0:01:28]} 67. Kf5 {[%clk 0:00:04]}  Re1 {[%clk 0:01:25]} 68. Re4 {[%clk 0:00:05]}  Rd1 {[%clk 0:01:23]} 69. Ke5 {[%clk 0:00:06]}  Rd8 {[%clk 0:01:23]} 70. Rd4 {[%clk 0:00:06]}  Rc8 {[%clk 0:01:21]} 71. Kd5 {[%clk 0:00:07]}  Rc7 {[%clk 0:01:21]} 72. Kd6 {[%clk 0:00:07]}  Rc8 {[%clk 0:01:20]} 73. a5 {[%clk 0:00:07]}  Ra8 {[%clk 0:01:20]} 74. Rd5 {[%clk 0:00:08]}  Kc4 {[%clk 0:01:18]} 75. Kc6 {[%clk 0:00:09]}  Ra6+ {[%clk 0:01:18]} 76. Kb7 {[%clk 0:00:09]}  Kxd5 {[%clk 0:01:12]} 77. Kxa6 {[%clk 0:00:09]}  Kc6 {[%clk 0:01:12]} 78. Ka7 {[%clk 0:00:10]}  Kc7 {[%clk 0:01:13]} 79. a6 {[%clk 0:00:11]}  Kc8 {[%clk 0:01:12]} 80. Kb6 {[%clk 0:00:10]}  Kb8 {[%clk 0:01:13]} 81. a7+ {[%clk 0:00:11]}  Ka8 {[%clk 0:01:13]} 82. Ka6 {[%clk 0:00:12]} 1/2-1/2


[Site "https://www.chess.com"]

[Event "Titled Tuesday Blitz October 11 Late 2022"]
[White "Adury, Anant"]
[Black "Czernek, Tymon"]
[WhiteFideId "30964687"]
[BlackFideId "1199510"]
[WhiteElo "2300"]
[BlackElo "2240"]
[Result "1-0"]
[Round "01"]
[TimeControl "180+1"]
[Date "2022.10.12"]
[WhiteClock "0:00:25"]
[BlackClock "0:00:44"]

1. Nf3 {[%clk 0:03:00]}  Nf6 {[%clk 0:02:47]} 2. g3 {[%clk 0:03:00]}  g6 {[%clk 0:02:47]} 3. Bg2 {[%clk 0:03:00]}  Bg7 {[%clk 0:02:48]} 4. O-O {[%clk 0:03:00]}  O-O {[%clk 0:02:49]} 5. c4 {[%clk 0:03:00]}  d6 {[%clk 0:02:49]} 6. Nc3 {[%clk 0:03:00]}  e5 {[%clk 0:02:50]} 7. d3 {[%clk 0:03:01]}  c6 {[%clk 0:02:49]} 8. Rb1 {[%clk 0:02:58]}  a5 {[%clk 0:02:48]} 9. a3 {[%clk 0:02:58]}  Qe7 {[%clk 0:02:47]} 10. Nd2 {[%clk 0:02:56]}  Rd8 {[%clk 0:02:46]} 11. Nde4 {[%clk 0:02:42]}  Nxe4 {[%clk 0:02:37]} 12. Nxe4 {[%clk 0:02:43]}  d5 {[%clk 0:02:34]} 13. cxd5 {[%clk 0:02:44]}  cxd5 {[%clk 0:02:34]} 14. Nc3 {[%clk 0:02:44]}  Be6 {[%clk 0:02:33]} 15. e4 {[%clk 0:02:44]}  d4 {[%clk 0:02:33]} 16. Nd5 {[%clk 0:02:44]}  Bxd5 {[%clk 0:02:33]} 17. exd5 {[%clk 0:02:44]}  Nd7 {[%clk 0:02:33]} 18. d6 {[%clk 0:02:07]}  Qxd6 {[%clk 0:02:32]} 19. Bxb7 {[%clk 0:02:08]}  Rab8 {[%clk 0:02:32]} 20. Bg2 {[%clk 0:02:06]}  Nc5 {[%clk 0:02:29]} 21. Bd2 {[%clk 0:02:04]}  Nb3 {[%clk 0:02:27]} 22. Re1 {[%clk 0:01:54]}  Rdc8 {[%clk 0:02:16]} 23. Bh3 {[%clk 0:01:44]}  Rc7 {[%clk 0:02:06]} 24. Bf1 {[%clk 0:01:14]}  h5 {[%clk 0:01:52]} 25. f4 {[%clk 0:01:02]}  Nxd2 {[%clk 0:01:41]} 26. Qxd2 {[%clk 0:01:00]}  exf4 {[%clk 0:01:41]} 27. Qxf4 {[%clk 0:01:01]}  Qxf4 {[%clk 0:01:33]} 28. gxf4 {[%clk 0:01:01]}  Rc2 {[%clk 0:01:33]} 29. Re2 {[%clk 0:01:00]}  Rxe2 {[%clk 0:01:27]} 30. Bxe2 {[%clk 0:01:01]}  Bh6 {[%clk 0:01:27]} 31. f5 {[%clk 0:00:57]}  Be3+ {[%clk 0:01:21]} 32. Kg2 {[%clk 0:00:52]}  gxf5 {[%clk 0:01:22]} 33. Bxh5 {[%clk 0:00:49]}  Kg7 {[%clk 0:01:22]} 34. b4 {[%clk 0:00:47]}  axb4 {[%clk 0:01:20]} 35. axb4 {[%clk 0:00:48]}  f4 {[%clk 0:01:08]} 36. b5 {[%clk 0:00:47]}  f5 {[%clk 0:01:08]} 37. b6 {[%clk 0:00:46]}  Kf6 {[%clk 0:01:08]} 38. b7 {[%clk 0:00:46]}  Ke5 {[%clk 0:01:07]} 39. Bf3 {[%clk 0:00:42]}  Kd6 {[%clk 0:01:02]} 40. h4 {[%clk 0:00:42]}  Rg8+ {[%clk 0:00:56]} 41. Kh2 {[%clk 0:00:42]}  Kc7 {[%clk 0:00:55]} 42. h5 {[%clk 0:00:26]}  Kb8 {[%clk 0:00:49]} 43. Ra1 {[%clk 0:00:26]}  Kc7 {[%clk 0:00:44]} 44. Ra8 {[%clk 0:00:25]} 1-0


[Site "https://www.chess.com"]

[Event "Titled Tuesday Blitz October 11 Late 2022"]
[White "Aghasiyev, Kamal"]
[Black "Rodriguez Santiago, Jaime"]
[WhiteFideId "13402854"]
[BlackFideId "3100898"]
[WhiteElo "2341"]
[BlackElo "2025"]
[Result "1-0"]
[Round "01"]
[TimeControl "180+1"]
[Date "2022.10.12"]
[WhiteClock "0:00:46"]
[BlackClock "0:01:05"]

1. d4 {[%clk 0:03:00]}  d5 {[%clk 0:02:58]} 2. Nf3 {[%clk 0:02:59]}  Nf6 {[%clk 0:02:57]} 3. c4 {[%clk 0:02:58]}  e6 {[%clk 0:02:57]} 4. Nc3 {[%clk 0:02:57]}  c5 {[%clk 0:02:54]} 5. e3 {[%clk 0:02:53]}  dxc4 {[%clk 0:02:49]} 6. Bxc4 {[%clk 0:02:52]}  Nc6 {[%clk 0:02:49]} 7. O-O {[%clk 0:02:52]}  Bd6 {[%clk 0:02:46]} 8. Qe2 {[%clk 0:02:50]}  cxd4 {[%clk 0:02:45]} 9. exd4 {[%clk 0:02:50]}  O-O {[%clk 0:02:44]} 10. Bg5 {[%clk 0:02:50]}  h6 {[%clk 0:02:42]} 11. Bh4 {[%clk 0:02:48]}  Be7 {[%clk 0:02:40]} 12. Rad1 {[%clk 0:02:46]}  Qb6 {[%clk 0:02:31]} 13. a3 {[%clk 0:01:40]}  a6 {[%clk 0:02:28]} 14. Ba2 {[%clk 0:01:37]}  Re8 {[%clk 0:02:17]} 15. Rd3 {[%clk 0:01:28]}  Qa7 {[%clk 0:02:10]} 16. Rfd1 {[%clk 0:01:28]}  b5 {[%clk 0:02:10]} 17. Ne5 {[%clk 0:01:19]}  Nxe5 {[%clk 0:02:01]} 18. dxe5 {[%clk 0:01:18]}  Nh7 {[%clk 0:02:00]} 19. Bxe7 {[%clk 0:01:13]}  Rxe7 {[%clk 0:01:58]} 20. Rd8+ {[%clk 0:01:14]}  Nf8 {[%clk 0:01:59]} 21. Ne4 {[%clk 0:01:11]}  Bb7 {[%clk 0:01:54]} 22. Bb1 {[%clk 0:01:09]}  Rxd8 {[%clk 0:01:47]} 23. Rxd8 {[%clk 0:01:08]}  Rd7 {[%clk 0:01:47]} 24. Rxd7 {[%clk 0:00:57]}  Nxd7 {[%clk 0:01:46]} 25. Nd6 {[%clk 0:00:57]}  Bd5 {[%clk 0:01:40]} 26. Qc2 {[%clk 0:00:53]}  g6 {[%clk 0:01:32]} 27. Qc8+ {[%clk 0:00:47]}  Kg7 {[%clk 0:01:17]} 28. Ne8+ {[%clk 0:00:46]}  Kh7 {[%clk 0:01:15]} 29. Qxd7 {[%clk 0:00:45]}  Qxd7 {[%clk 0:01:11]} 30. Nf6+ {[%clk 0:00:46]}  Kg7 {[%clk 0:01:12]} 31. Nxd7 {[%clk 0:00:47]}  g5 {[%clk 0:01:09]} 32. b4 {[%clk 0:00:46]}  h5 {[%clk 0:01:05]} 33. Nc5 {[%clk 0:00:46]} 1-0


[Site "https://www.chess.com"]

[Event "Titled Tuesday Blitz October 11 Late 2022"]
[White "Al Hosani, Omran"]
[Black "Onslow, Alfie"]
[WhiteFideId "9308733"]
[BlackFideId "436976"]
[WhiteElo "2167"]
[BlackElo "2015"]
[Result "0-1"]
[Round "01"]
[TimeControl "180+1"]
[Date "2022.10.12"]
[WhiteClock "0:00:58"]
[BlackClock "0:00:11"]

1. e4 {[%clk 0:02:59]}  g6 {[%clk 0:02:59]} 2. d4 {[%clk 0:02:58]}  Bg7 {[%clk 0:03:00]} 3. Nc3 {[%clk 0:02:59]}  c6 {[%clk 0:03:00]} 4. Nf3 {[%clk 0:02:59]}  d5 {[%clk 0:03:00]} 5. e5 {[%clk 0:02:59]}  h5 {[%clk 0:02:59]} 6. Bd3 {[%clk 0:02:59]}  Nh6 {[%clk 0:02:58]} 7. Ne2 {[%clk 0:02:59]}  Bf5 {[%clk 0:02:57]} 8. c3 {[%clk 0:02:59]}  Bxd3 {[%clk 0:02:53]} 9. Qxd3 {[%clk 0:03:00]}  Nf5 {[%clk 0:02:53]} 10. O-O {[%clk 0:03:00]}  e6 {[%clk 0:02:51]} 11. Ng3 {[%clk 0:03:01]}  Nd7 {[%clk 0:02:44]} 12. Bg5 {[%clk 0:02:59]}  Qc7 {[%clk 0:02:43]} 13. Rae1 {[%clk 0:02:59]}  Bh6 {[%clk 0:02:21]} 14. Nxf5 {[%clk 0:02:52]}  gxf5 {[%clk 0:02:20]} 15. h4 {[%clk 0:02:51]}  Bxg5 {[%clk 0:02:17]} 16. Nxg5 {[%clk 0:02:51]}  Nf8 {[%clk 0:02:14]} 17. c4 {[%clk 0:02:49]}  Ng6 {[%clk 0:02:13]} 18. g3 {[%clk 0:02:49]}  Qd7 {[%clk 0:02:04]} 19. cxd5 {[%clk 0:02:47]}  Qxd5 {[%clk 0:02:03]} 20. Rc1 {[%clk 0:02:41]}  Nxe5 {[%clk 0:01:36]} 21. Qd1 {[%clk 0:02:41]}  Ng6 {[%clk 0:01:30]} 22. Rc5 {[%clk 0:02:40]}  Qd6 {[%clk 0:01:30]} 23. Re1 {[%clk 0:02:40]}  f4 {[%clk 0:01:27]} 24. Qb3 {[%clk 0:02:27]}  fxg3 {[%clk 0:01:24]} 25. fxg3 {[%clk 0:02:26]}  Qxd4+ {[%clk 0:01:23]} 26. Qe3 {[%clk 0:02:26]}  Qxe3+ {[%clk 0:01:13]} 27. Rxe3 {[%clk 0:02:26]}  Ke7 {[%clk 0:01:13]} 28. Rb3 {[%clk 0:02:25]}  Rab8 {[%clk 0:01:11]} 29. Ra5 {[%clk 0:02:26]}  a6 {[%clk 0:01:11]} 30. Rc5 {[%clk 0:02:26]}  f6 {[%clk 0:01:02]} 31. Nf3 {[%clk 0:02:24]}  e5 {[%clk 0:00:59]} 32. a4 {[%clk 0:02:22]}  Rhg8 {[%clk 0:00:57]} 33. Kf2 {[%clk 0:02:22]}  Kd6 {[%clk 0:00:52]} 34. Rc2 {[%clk 0:02:16]}  e4 {[%clk 0:00:44]} 35. Rd2+ {[%clk 0:02:12]}  Kc7 {[%clk 0:00:39]} 36. Nd4 {[%clk 0:02:12]}  Ne5 {[%clk 0:00:37]} 37. Ne6+ {[%clk 0:02:11]}  Kc8 {[%clk 0:00:33]} 38. Ke3 {[%clk 0:02:04]}  Nc4+ {[%clk 0:00:32]} 39. Ke2 {[%clk 0:02:03]}  Nxd2 {[%clk 0:00:30]} 40. Kxd2 {[%clk 0:02:03]}  Kd7 {[%clk 0:00:25]} 41. Nc5+ {[%clk 0:02:04]}  Ke7 {[%clk 0:00:21]} 42. Nxe4 {[%clk 0:01:57]}  Rg4 {[%clk 0:00:21]} 43. Nc5 {[%clk 0:01:57]}  b6 {[%clk 0:00:16]} 44. Nxa6 {[%clk 0:01:56]}  Rd8+ {[%clk 0:00:16]} 45. Kc2 {[%clk 0:01:55]}  Rxa4 {[%clk 0:00:13]} 46. Rxb6 {[%clk 0:01:55]}  Rc4+ {[%clk 0:00:13]} 47. Kb3 {[%clk 0:01:55]}  Rg4 {[%clk 0:00:13]} 48. Rxc6 {[%clk 0:01:45]}  Rxg3+ {[%clk 0:00:12]} 49. Ka2 {[%clk 0:01:46]}  Ra8 {[%clk 0:00:12]} 50. b4 {[%clk 0:01:45]}  Rg4 {[%clk 0:00:12]} 51. b5 {[%clk 0:01:45]}  Rxh4 {[%clk 0:00:12]} 52. Kb3 {[%clk 0:01:42]}  Rg4 {[%clk 0:00:11]} 53. Rc5 {[%clk 0:01:42]}  h4 {[%clk 0:00:11]} 54. Rh5 {[%clk 0:01:42]}  Kf7 {[%clk 0:00:10]} 55. Nc7 {[%clk 0:01:39]}  Rb8 {[%clk 0:00:09]} 56. Na6 {[%clk 0:01:33]}  Rb6 {[%clk 0:00:09]} 57. Nb4 {[%clk 0:01:20]}  Kg6 {[%clk 0:00:07]} 58. Rc5 {[%clk 0:01:21]}  h3 {[%clk 0:00:07]} 59. Ka4 {[%clk 0:01:07]}  h2 {[%clk 0:00:07]} 60. Ka5 {[%clk 0:00:56]}  h1=Q {[%clk 0:00:07]} 61. Kxb6 {[%clk 0:00:56]}  Rxb4 {[%clk 0:00:08]} 62. Ka5 {[%clk 0:00:54]}  Rb3 {[%clk 0:00:04]} 63. Rc4 {[%clk 0:00:52]}  Qa1+ {[%clk 0:00:04]} 64. Ra4 {[%clk 0:00:52]}  Qc3+ {[%clk 0:00:05]} 65. Ka6 {[%clk 0:00:52]}  Qc5 {[%clk 0:00:05]} 66. Ra5 {[%clk 0:00:52]}  Qd6+ {[%clk 0:00:05]} 67. Ka7 {[%clk 0:00:52]}  Qc5+ {[%clk 0:00:05]} 68. Ka6 {[%clk 0:00:52]}  Ra3 {[%clk 0:00:05]} 69. Rxa3 {[%clk 0:00:51]}  Qxa3+ {[%clk 0:00:06]} 70. Kb7 {[%clk 0:00:52]}  Qb4 {[%clk 0:00:06]} 71. b6 {[%clk 0:00:53]}  f5 {[%clk 0:00:07]} 72. Kc6 {[%clk 0:00:54]}  f4 {[%clk 0:00:07]} 73. b7 {[%clk 0:00:55]}  f3 {[%clk 0:00:08]} 74. Kd5 {[%clk 0:00:55]}  Qxb7+ {[%clk 0:00:08]} 75. Kd4 {[%clk 0:00:56]}  f2 {[%clk 0:00:09]} 76. Ke3 {[%clk 0:00:57]}  f1=Q {[%clk 0:00:09]} 77. Kd2 {[%clk 0:00:57]}  Qff3 {[%clk 0:00:09]} 78. Kc2 {[%clk 0:00:57]}  Qbb3+ {[%clk 0:00:10]} 79. Kd2 {[%clk 0:00:58]}  Qb2+ {[%clk 0:00:10]} 80. Ke1 {[%clk 0:00:58]}  Qh1# {[%clk 0:00:11]} 0-1


[Site "https://www.chess.com"]

[Event "Titled Tuesday Blitz October 11 Late 2022"]
[White "Araujo Sanchez, Josue"]
[Black "Zaloznyy, Mike"]
[WhiteFideId "6416896"]
[BlackFideId "2023075"]
[WhiteElo "2370"]
[BlackElo "2126"]
[Result "1-0"]
[Round "01"]
[TimeControl "180+1"]
[Date "2022.10.12"]
[WhiteClock "0:00:31"]
[BlackClock "0:00:01"]

1. e4 {[%clk 0:02:58]}  d6 {[%clk 0:02:56]} 2. d4 {[%clk 0:02:57]}  Nf6 {[%clk 0:02:55]} 3. Nc3 {[%clk 0:02:56]}  e5 {[%clk 0:02:54]} 4. Nge2 {[%clk 0:02:56]}  Be7 {[%clk 0:02:52]} 5. g3 {[%clk 0:02:55]}  Nbd7 {[%clk 0:02:51]} 6. Bg2 {[%clk 0:02:54]}  c6 {[%clk 0:02:50]} 7. O-O {[%clk 0:02:54]}  h5 {[%clk 0:02:50]} 8. h3 {[%clk 0:02:54]}  Qc7 {[%clk 0:02:48]} 9. a4 {[%clk 0:02:53]}  a5 {[%clk 0:02:46]} 10. Be3 {[%clk 0:02:52]}  O-O {[%clk 0:02:44]} 11. Qd2 {[%clk 0:02:50]}  Re8 {[%clk 0:02:44]} 12. Rae1 {[%clk 0:02:47]}  Bf8 {[%clk 0:02:42]} 13. f4 {[%clk 0:02:47]}  Nb6 {[%clk 0:02:39]} 14. b3 {[%clk 0:02:47]}  Bd7 {[%clk 0:02:15]} 15. Rf2 {[%clk 0:02:44]}  Rad8 {[%clk 0:02:13]} 16. Ref1 {[%clk 0:02:43]}  exd4 {[%clk 0:02:07]} 17. Bxd4 {[%clk 0:02:42]}  d5 {[%clk 0:01:58]} 18. Bxf6 {[%clk 0:02:16]}  gxf6 {[%clk 0:01:59]} 19. Kh1 {[%clk 0:02:13]}  Bc5 {[%clk 0:01:49]} 20. Rf3 {[%clk 0:02:10]}  Qc8 {[%clk 0:01:43]} 21. exd5 {[%clk 0:02:08]}  Bxh3 {[%clk 0:01:40]} 22. Rd3 {[%clk 0:02:03]}  h4 {[%clk 0:01:20]} 23. f5 {[%clk 0:02:00]}  Bxf5 {[%clk 0:01:08]} 24. Rdf3 {[%clk 0:01:54]}  Re5 {[%clk 0:00:52]} 25. Qh6 {[%clk 0:01:50]}  h3 {[%clk 0:00:41]} 26. Qxf6 {[%clk 0:01:44]}  hxg2+ {[%clk 0:00:41]} 27. Kxg2 {[%clk 0:01:45]}  Bh3+ {[%clk 0:00:30]} 28. Kh2 {[%clk 0:01:44]}  Bxf1 {[%clk 0:00:16]} 29. Qxf7+ {[%clk 0:01:40]}  Kh8 {[%clk 0:00:16]} 30. Rxf1 {[%clk 0:01:32]}  Rde8 {[%clk 0:00:04]} 31. Qf6+ {[%clk 0:01:26]}  Kg8 {[%clk 0:00:03]} 32. Qg6+ {[%clk 0:01:19]}  Kh8 {[%clk 0:00:03]} 33. Qf6+ {[%clk 0:01:09]}  Kg8 {[%clk 0:00:03]} 34. Qf7+ {[%clk 0:00:32]}  Kh8 {[%clk 0:00:03]} 35. Kg2 {[%clk 0:00:31]}  Rxe2+ {[%clk 0:00:03]} 36. Nxe2 {[%clk 0:00:32]}  Rxe2+ {[%clk 0:00:03]} 37. Kf3 {[%clk 0:00:32]}  Qe8 {[%clk 0:00:02]} 38. Rh1+ {[%clk 0:00:31]}  Rh2 {[%clk 0:00:01]} 39. Rxh2# {[%clk 0:00:31]} 1-0


[Site "https://www.chess.com"]

[Event "Titled Tuesday Blitz October 11 Late 2022"]
[White "Arnold, Ken"]
[Black "Jaracz, Pawel"]
[WhiteFideId "2056836"]
[BlackFideId "1102222"]
[WhiteElo "2356"]
[BlackElo "2459"]
[Result "0-1"]
[Round "01"]
[TimeControl "180+1"]
[Date "2022.10.12"]
[WhiteClock "0:01:36"]
[BlackClock "0:02:03"]

1. d4 {[%clk 0:03:00]}  Nf6 {[%clk 0:02:59]} 2. c4 {[%clk 0:02:52]}  g6 {[%clk 0:02:58]} 3. Nc3 {[%clk 0:02:42]}  d5 {[%clk 0:02:58]} 4. cxd5 {[%clk 0:02:38]}  Nxd5 {[%clk 0:02:57]} 5. e4 {[%clk 0:02:38]}  Nxc3 {[%clk 0:02:57]} 6. bxc3 {[%clk 0:02:39]}  Bg7 {[%clk 0:02:57]} 7. Bc4 {[%clk 0:02:35]}  c5 {[%clk 0:02:57]} 8. Be3 {[%clk 0:02:35]}  Nc6 {[%clk 0:02:57]} 9. Ne2 {[%clk 0:02:35]}  O-O {[%clk 0:02:57]} 10. O-O {[%clk 0:02:35]}  Bd7 {[%clk 0:02:53]} 11. Rb1 {[%clk 0:02:33]}  Qc7 {[%clk 0:02:50]} 12. Bd5 {[%clk 0:02:02]}  e6 {[%clk 0:02:45]} 13. Bb3 {[%clk 0:02:02]}  Na5 {[%clk 0:02:42]} 14. Qd2 {[%clk 0:01:58]}  b6 {[%clk 0:02:39]} 15. Rfd1 {[%clk 0:01:52]}  cxd4 {[%clk 0:02:23]} 16. cxd4 {[%clk 0:01:51]}  Nxb3 {[%clk 0:02:12]} 17. axb3 {[%clk 0:01:49]}  Qb7 {[%clk 0:02:12]} 18. f3 {[%clk 0:01:46]}  Rac8 {[%clk 0:02:07]} 19. Qb4 {[%clk 0:01:41]}  Rfd8 {[%clk 0:02:03]} 20. Rd2 {[%clk 0:01:36]}  Bf8 {[%clk 0:02:03]} 0-1


[Site "https://www.chess.com"]

[Event "Titled Tuesday Blitz October 11 Late 2022"]
[White "Babazada, Khazar"]
[Black "Vivas Zamora, Fabian Ernesto"]
[WhiteFideId "13413554"]
[BlackFideId "3902480"]
[WhiteElo "2874"]
[BlackElo "2470"]
[Result "1-0"]
[Round "01"]
[TimeControl "180+1"]
[Date "2022.10.12"]
[WhiteClock "0:01:58"]
[BlackClock "0:00:31"]

1. Nf3 {[%clk 0:02:57]}  g6 {[%clk 0:02:58]} 2. e3 {[%clk 0:02:57]}  Bg7 {[%clk 0:02:58]} 3. d4 {[%clk 0:02:58]}  Nf6 {[%clk 0:02:58]} 4. c4 {[%clk 0:02:59]}  O-O {[%clk 0:02:59]} 5. Nc3 {[%clk 0:02:59]}  d5 {[%clk 0:02:55]} 6. cxd5 {[%clk 0:02:59]}  Nxd5 {[%clk 0:02:55]} 7. Bc4 {[%clk 0:03:00]}  Nb6 {[%clk 0:02:51]} 8. Bb3 {[%clk 0:03:00]}  Na6 {[%clk 0:02:49]} 9. O-O {[%clk 0:03:00]}  c5 {[%clk 0:02:48]} 10. h3 {[%clk 0:03:00]}  cxd4 {[%clk 0:02:46]} 11. exd4 {[%clk 0:03:00]}  Nb4 {[%clk 0:02:45]} 12. a3 {[%clk 0:02:55]}  N4d5 {[%clk 0:02:45]} 13. Re1 {[%clk 0:02:55]}  h6 {[%clk 0:02:39]} 14. Bd2 {[%clk 0:02:51]}  Be6 {[%clk 0:02:36]} 15. Ne4 {[%clk 0:02:51]}  Nc7 {[%clk 0:02:29]} 16. Nc5 {[%clk 0:02:50]}  Bxb3 {[%clk 0:02:24]} 17. Qxb3 {[%clk 0:02:49]}  Rb8 {[%clk 0:02:01]} 18. Bf4 {[%clk 0:02:44]}  Nbd5 {[%clk 0:01:52]} 19. Bg3 {[%clk 0:02:44]}  b6 {[%clk 0:01:51]} 20. Nd3 {[%clk 0:02:44]}  Rc8 {[%clk 0:01:48]} 21. Nfe5 {[%clk 0:02:37]}  Ne6 {[%clk 0:01:44]} 22. Qa4 {[%clk 0:02:28]}  Qe8 {[%clk 0:01:21]} 23. Qxa7 {[%clk 0:02:10]}  Nxd4 {[%clk 0:01:19]} 24. Nd7 {[%clk 0:02:10]}  Nc6 {[%clk 0:00:58]} 25. Qb7 {[%clk 0:02:10]}  Bxb2 {[%clk 0:00:58]} 26. Rad1 {[%clk 0:02:03]}  Nc3 {[%clk 0:00:54]} 27. Nxb2 {[%clk 0:02:00]}  Nxd1 {[%clk 0:00:52]} 28. Rxd1 {[%clk 0:02:01]}  Rd8 {[%clk 0:00:45]} 29. Nxf8 {[%clk 0:02:00]}  Rxd1+ {[%clk 0:00:32]} 30. Nxd1 {[%clk 0:02:00]}  Na5 {[%clk 0:00:31]} 31. Qxb6 {[%clk 0:01:58]} 1-0


[Site "https://www.chess.com"]

[Event "Titled Tuesday Blitz October 11 Late 2022"]
[White "Bjelobrk, Igor"]
[Black "Sailer, Mike"]
[WhiteFideId "4300726"]
[BlackFideId "2012901"]
[WhiteElo "2335"]
[BlackElo "2109"]
[Result "1-0"]
[Round "01"]
[TimeControl "180+1"]
[Date "2022.10.12"]
[WhiteClock "0:00:43"]
[BlackClock "0:00:02"]

1. Nf3 {[%clk 0:03:00]}  d5 {[%clk 0:02:56]} 2. g3 {[%clk 0:03:00]}  Nf6 {[%clk 0:02:55]} 3. Bg2 {[%clk 0:02:58]}  Bf5 {[%clk 0:02:51]} 4. c4 {[%clk 0:02:39]}  c6 {[%clk 0:02:48]} 5. O-O {[%clk 0:02:37]}  e6 {[%clk 0:02:48]} 6. d3 {[%clk 0:02:37]}  Be7 {[%clk 0:02:48]} 7. Nh4 {[%clk 0:02:15]}  Bg4 {[%clk 0:02:48]} 8. h3 {[%clk 0:02:13]}  Bh5 {[%clk 0:02:48]} 9. f4 {[%clk 0:02:10]}  Nbd7 {[%clk 0:02:39]} 10. Qe1 {[%clk 0:02:02]}  dxc4 {[%clk 0:02:11]} 11. dxc4 {[%clk 0:02:00]}  Nb6 {[%clk 0:01:53]} 12. Nd2 {[%clk 0:01:43]}  Nfd7 {[%clk 0:01:49]} 13. Nhf3 {[%clk 0:01:41]}  Bg6 {[%clk 0:01:47]} 14. Kh2 {[%clk 0:01:29]}  Qc7 {[%clk 0:01:41]} 15. e4 {[%clk 0:01:17]}  f6 {[%clk 0:01:24]} 16. b3 {[%clk 0:01:14]}  Bb4 {[%clk 0:01:20]} 17. Bb2 {[%clk 0:01:13]}  O-O-O {[%clk 0:01:19]} 18. Qe2 {[%clk 0:01:12]}  Bxd2 {[%clk 0:01:16]} 19. Nxd2 {[%clk 0:01:12]}  h5 {[%clk 0:01:14]} 20. h4 {[%clk 0:01:06]}  Nc5 {[%clk 0:01:09]} 21. Rad1 {[%clk 0:01:00]}  Nd3 {[%clk 0:01:08]} 22. Ba1 {[%clk 0:00:58]}  Nb4 {[%clk 0:00:43]} 23. Nf3 {[%clk 0:00:55]}  Rxd1 {[%clk 0:00:40]} 24. Rxd1 {[%clk 0:00:55]}  Rd8 {[%clk 0:00:41]} 25. Nd4 {[%clk 0:00:55]}  e5 {[%clk 0:00:31]} 26. Ne6 {[%clk 0:00:54]}  Rxd1 {[%clk 0:00:22]} 27. Nxc7 {[%clk 0:00:53]}  Rxa1 {[%clk 0:00:23]} 28. Ne6 {[%clk 0:00:46]}  a6 {[%clk 0:00:02]} 29. Qd2 {[%clk 0:00:43]} 1-0


[Site "https://www.chess.com"]